bitfinex/quotes_BTCUSD_20240828
["timestamp","ask_amount","ask_price","bid_price","bid_amount"]
[1724853925988,0.000816,59718.0,59710.0,0.0765]
[1724853926188,0.000816,59718.0,59716.0,0.167458]
[1724853926393,0.000816,59718.0,59712.0,0.33494]
[1724853926599,0.168271,59718.0,59714.0,0.167463]
[1724853926953,0.000816,59718.0,59712.0,0.33494]
[1724853927161,0.000816,59718.0,59714.0,0.334927]
[1724853927483,0.000816,59718.0,59717.0,0.167456]
[1724853927843,0.000816,59718.0,59715.0,0.16746]
[1724853928208,0.1,59724.0,59710.0,0.0765]
[1724853928392,0.334899,59720.0,59713.0,0.167465]
[1724853928604,0.167459,59717.0,59713.0,0.167465]
[1724853928812,0.334903,59719.0,59715.0,0.167461]
[1724853928813,0.167452,59719.0,59715.0,0.167461]
[1724853929295,0.167446,59721.0,59717.0,0.167455]
[1724853929441,0.1,59725.0,59718.0,0.0823]
[1724853929644,0.344821,59734.0,59718.0,0.0823]
[1724853929645,0.00818,59732.0,59718.0,0.0823]
[1724853929845,0.01018,59732.0,59719.0,0.334898]
[1724853930056,0.167429,59727.0,59719.0,0.334898]
[1724853930252,0.167432,59726.0,59722.0,0.167441]
[1724853930607,0.334852,59728.0,59719.0,0.04909212]
[1724853930838,0.167448,59720.0,59719.0,0.04909212]
[1724853931080,0.334883,59723.0,59719.0,0.04909212]
[1724853931276,0.00818,59732.0,59719.0,0.04909212]
[1724853931277,0.00818,59732.0,59720.0,0.0629]
[1724853931485,0.00818,59732.0,59730.0,0.167418]
[1724853931704,0.00818,59732.0,59731.0,0.167417]
[1724853931902,0.00818,59732.0,59731.0,0.32338921]
[1724853932118,0.00818,59732.0,59731.0,0.94972525]
[1724853932350,0.00817,59742.0,59741.0,0.836945]
[1724853932561,0.00817,59742.0,59741.0,1.54228377]
[1724853932788,0.00020198,59770.0,59746.0,1.20747704]
[1724853932998,0.342793,59767.0,59746.0,0.915975]
[1724853933208,0.342793,59767.0,59746.0,0.99762208]
[1724853933209,0.342826,59763.0,59746.0,0.99762208]
[1724853933400,0.00817,59763.0,59746.0,0.99762208]
[1724853933601,0.00817,59763.0,59746.0,1.79233489]
[1724853935437,0.00817,59763.0,59746.0,1.33237208]
[1724853935690,0.419029,59763.0,59746.0,0.99762208]
[1724853935867,0.334694,59757.0,59746.0,0.18492208]
[1724853936074,0.167348,59756.0,59746.0,0.51967208]
[1724853936279,0.08437,59763.0,59746.0,0.51967208]
[1724853936280,0.08437,59763.0,59746.0,1.18917208]
[1724853936728,0.251698,59763.0,59746.0,1.18917208]
[1724853936929,0.10817,59762.0,59746.0,1.18917208]
[1724853937132,0.00817,59762.0,59746.0,1.18917208]
[1724853937498,0.00817,59762.0,59746.0,0.85442208]
[1724853937731,0.167492,59747.0,59746.0,0.01754708]
[1724853938140,0.167379,59745.0,59740.0,0.16739]
[1724853938355,0.00012,59747.0,59739.0,0.334788]
[1724853938572,0.00012,59747.0,59742.0,0.167385]
[1724853939203,0.167375,59746.0,59738.0,0.167396]
[1724853939450,0.334779,59741.0,59730.0,0.049818]
[1724853939649,0.07632,59747.0,59734.0,0.50540786]
[1724853939853,0.343693,59747.0,59739.0,0.167393]
[1724853940051,0.17632,59747.0,59730.0,0.384654]
[1724853940226,0.16738,59745.0,59730.0,0.049818]
[1724853940591,0.17632,59747.0,59739.0,0.167394]
[1724853940790,0.17632,59747.0,59740.0,0.167391]
[1724853940928,0.243693,59747.0,59736.0,0.334804]
[1724853941140,0.243693,59747.0,59730.0,0.049818]
[1724853941141,0.00012,59747.0,59732.0,0.50875601]
[1724853941344,0.167386,59743.0,59730.0,0.049818]
[1724853941664,0.0167506,59743.0,59730.0,0.049818]
[1724853941903,0.007,59741.0,59730.0,0.049818]
[1724853942124,0.334794,59739.0,59731.0,0.167414]
[1724853942329,0.0762,59742.0,59730.0,0.049818]
[1724853942525,0.0762,59742.0,59731.0,0.334831]
[1724853942729,0.09751,59742.0,59730.0,0.049818]
[1724853942932,0.167413,59733.0,59730.0,0.049818]
[1724853943153,0.167414,59733.0,59728.0,0.167425]
[1724853943361,0.334806,59736.0,59728.0,0.334848]
[1724853943560,0.0762,59742.0,59725.0,0.334864]
[1724853943777,0.167418,59731.0,59727.0,0.167428]
[1724853944126,0.005,59734.0,59721.0,0.04964343]
[1724853944328,0.411053,59728.0,59721.0,0.04964343]
[1724853944753,0.167432,59726.0,59721.0,0.04964343]
[1724853944992,0.0762,59728.0,59721.0,0.04964343]
[1724853945200,0.334865,59726.0,59718.0,0.167451]
[1724853945319,0.334889,59722.0,59716.0,0.167457]
[1724853945691,0.33487,59725.0,59717.0,0.167455]
[1724853945902,0.334878,59724.0,59714.0,0.04936636]
[1724853946086,0.167453,59718.0,59714.0,0.21683036]
[1724853946314,0.502386,59715.0,59714.0,0.04936636]
[1724853946601,0.502386,59715.0,59698.0,0.0008976]
[1724853946602,0.16749,59705.0,59704.0,0.00737414]
[1724853946807,0.1782,59715.0,59704.0,0.00737414]
[1724853946808,0.167465,59714.0,59704.0,0.00737414]
[1724853947019,0.1762,59715.0,59704.0,0.00737414]
[1724853947020,0.1762,59715.0,59710.0,0.167474]
[1724853947190,0.1,59715.0,59705.0,0.35201951]
[1724853947395,0.167468,59713.0,59706.0,0.334972]
[1724853947570,0.167472,59712.0,59706.0,0.01704351]
[1724853947769,0.167473,59711.0,59706.0,0.01704351]
[1724853947971,0.167461,59716.0,59704.0,0.00737414]
[1724853948296,0.002,59714.0,59709.0,0.167478]
[1724853948499,0.334927,59715.0,59705.0,0.01704351]
[1724853948701,0.334927,59715.0,59704.0,0.00737414]
[1724853948702,0.57867,59705.0,59704.0,0.00737414]
[1724853948900,1.26563,59705.0,59704.0,0.00737414]
[1724853949107,0.595677,59704.0,59703.0,0.0491593]
[1724853949452,1.65714904,59704.0,59703.0,0.0192593]
[1724853949712,0.854492,59702.0,59701.0,1.0]
[1724853949928,0.0812,59683.0,59674.0,0.02711153]
[1724853950135,1.25606,59683.0,59674.0,0.02711153]
[1724853950343,0.335125,59680.0,59674.0,0.02711153]
[1724853950571,0.16757,59677.0,59674.0,0.02711153]
[1724853950801,0.1,59679.0,59674.0,0.02711153]
[1724853951014,0.167574,59675.0,59674.0,0.02711153]
[1724853951216,0.167573,59676.0,59674.0,0.02711153]
[1724853951387,0.1,59679.0,59674.0,0.02711153]
[1724853951388,0.5629927,59675.0,59674.0,0.02711153]
[1724853951693,0.267564,59679.0,59674.0,0.02711153]
[1724853951890,0.167574,59675.0,59674.0,0.02711153]
[1724853952126,0.502722,59675.0,59674.0,0.0008976]
[1724853952354,0.167574,59675.0,59674.0,0.0008976]
[1724853952554,1.3948034,59675.0,59674.0,0.0008976]
[1724853952681,1.04207,59675.0,59674.0,0.0008976]
[1724853953030,0.701922,59675.0,59674.0,0.0008976]
[1724853953436,0.701922,59675.0,59674.0,0.0068976]
[1724853953437,1.725366,59675.0,59674.0,0.0068976]
[1724853953647,0.84508,59660.0,59654.0,0.008976]
[1724853953847,1.280312,59660.0,59654.0,0.008976]
[1724853954060,0.96608,59660.0,59654.0,0.008976]
[1724853954263,0.1,59660.0,59654.0,0.008976]
[1724853954465,0.1,59660.0,59659.0,0.176595]
[1724853954663,0.502848,59660.0,59659.0,0.008976]
[1724853954894,0.9574648,59660.0,59659.0,0.02658181]
[1724853955125,1.00648,59660.0,59659.0,0.008976]
[1724853955344,0.1,59660.0,59659.0,0.008976]
[1724853955965,1.278312,59660.0,59659.0,0.0282003]
[1724853956166,0.1,59660.0,59659.0,0.008976]
[1724853956319,0.602848,59660.0,59659.0,0.008976]
[1724853956520,0.606848,59660.0,59659.0,0.008976]
[1724853956739,0.94208,59660.0,59659.0,0.008976]
[1724853956951,1.069809,59660.0,59659.0,0.008976]
[1724853957147,0.93648,59660.0,59659.0,0.008976]
[1724853957572,0.93248,59660.0,59659.0,0.008976]
[1724853957751,1.677344,59660.0,59659.0,0.009976]
[1724853957951,1.367112,59660.0,59659.0,0.009976]
[1724853958402,1.364112,59660.0,59659.0,0.008976]
[1724853958759,1.359112,59660.0,59659.0,0.008976]
[1724853958956,1.364112,59660.0,59659.0,0.008976]
[1724853959176,1.376112,59660.0,59659.0,0.008976]
[1724853959389,1.5137232,59660.0,59659.0,0.008976]
[1724853959636,1.8529552,59660.0,59659.0,0.008976]
[1724853959841,1.8529552,59660.0,59654.0,0.008976]
[1724853959842,1.190413,59655.0,59654.0,0.008976]
[1724853959996,1.717074,59655.0,59654.0,0.008976]
[1724853960211,1.381813,59655.0,59654.0,0.008976]
[1724853960409,1.178627,59644.0,59643.0,0.008998]
[1724853960615,1.349027,59644.0,59643.0,0.008998]
[1724853960876,1.694349,59644.0,59643.0,0.008998]
[1724853961020,1.717349,59644.0,59643.0,0.008998]
[1724853961236,1.715349,59644.0,59643.0,0.008998]
[1724853961428,1.380027,59644.0,59643.0,0.008998]
[1724853961852,0.003,59655.0,59643.0,0.008998]
[1724853962043,0.167643,59651.0,59644.0,0.60592086]
[1724853962256,0.003,59655.0,59654.0,0.167633]
[1724853962455,0.003,59655.0,59654.0,0.502899]
[1724853962655,0.003,59655.0,59654.0,0.857378]
[1724853962866,0.003,59655.0,59654.0,1.000178]
[1724853963069,0.003,59655.0,59654.0,1.335444]
[1724853963513,0.167569,59677.0,59654.0,0.080713]
[1724853963722,0.18508888,59685.0,59673.0,0.335157]
[1724853963927,0.335115,59681.0,59671.0,0.0653]
[1724853964327,0.0684,59693.0,59672.0,0.01950111]
[1724853964551,0.16754,59688.0,59676.0,0.335142]
[1724853964753,0.167554,59683.0,59676.0,0.167569]
[1724853964952,0.167547,59685.0,59677.0,0.01950111]
[1724853965199,0.335066,59690.0,59671.0,0.0653]
[1724853965405,0.167548,59685.0,59680.0,0.167559]
[1724853965602,0.004,59681.0,59676.0,0.16757]
[1724853965805,0.004,59681.0,59671.0,0.0653]
[1724853966036,0.335065,59690.0,59681.0,0.167555]
[1724853966250,0.335065,59690.0,59671.0,0.0653]
[1724853966251,0.0335065,59689.0,59671.0,0.0653]
[1724853966457,0.005,59691.0,59672.0,0.50540786]
[1724853966657,0.005,59691.0,59671.0,0.0653]
[1724853966658,0.335087,59686.0,59671.0,0.0653]
[1724853966994,0.33507,59689.0,59680.0,0.167558]
[1724853967215,0.167543,59686.0,59680.0,0.167557]
[1724853967416,0.167575,59675.0,59671.0,0.0653]
[1724853967596,0.123,59688.0,59676.0,0.16857]
[1724853967794,0.335091,59686.0,59677.0,0.167568]
[1724853968050,0.002,59696.0,59671.0,0.0653]
[1724853968051,0.335048,59693.0,59671.0,0.0653]
[1724853968261,0.005,59701.0,59671.0,0.0653]
[1724853968262,0.335126,59679.0,59678.0,0.01532369]
[1724853968478,0.335133,59678.0,59671.0,0.0653]
[1724853968677,0.167582,59672.0,59671.0,0.0653]
[1724853968890,0.005,59681.0,59664.0,0.0783]
[1724853969086,0.167602,59665.0,59664.0,0.0783]
[1724853969461,0.335195,59667.0,59664.0,0.0783]
[1724853969462,0.167598,59667.0,59664.0,0.0783]
[1724853969661,0.005,59680.0,59664.0,0.0783]
[1724853969861,0.335189,59668.0,59664.0,0.0783]
[1724853970221,0.1,59682.0,59670.0,0.335175]
[1724853970421,0.335122,59680.0,59664.0,0.0783]
[1724853970597,0.167572,59676.0,59670.0,0.167588]
[1724853970751,0.002,59688.0,59661.0,0.0624]
[1724853970752,0.167551,59684.0,59678.0,0.167564]
[1724853970965,0.33512,59680.0,59679.0,0.0659]
[1724853971166,0.16756,59680.0,59679.0,0.0659]
[1724853971413,0.50268,59680.0,59679.0,0.0659]
[1724853971550,0.167572,59676.0,59673.0,0.0629]
[1724853971758,0.1,59687.0,59673.0,0.0629]
[1724853971978,0.167552,59683.0,59677.0,0.335136]
[1724853972231,0.267555,59682.0,59676.0,0.167569]
[1724853972430,0.167565,59679.0,59674.0,0.167575]
[1724853972663,0.1,59682.0,59673.0,0.0629]
[1724853972664,0.167561,59680.0,59675.0,0.167574]
[1724853972989,0.167563,59679.0,59673.0,0.230479]
[1724853973194,0.1,59682.0,59673.0,0.0629]
[1724853973195,0.167567,59678.0,59673.0,0.0629]
[1724853973427,0.335127,59679.0,59673.0,0.230479]
[1724853973652,0.16757,59677.0,59673.0,0.0629]
[1724853973852,0.1,59682.0,59673.0,0.0629]
[1724853974112,0.000819,59686.0,59676.0,0.335142]
[1724853974113,0.335094,59685.0,59676.0,0.335142]
[1724853974275,0.167567,59678.0,59673.0,0.0629]
[1724853974482,0.167567,59678.0,59667.0,0.0777]
[1724853974483,0.0167567,59678.0,59667.0,0.0777]
[1724853974680,0.0684,59682.0,59653.0,0.1437]
[1724853974681,0.002,59671.0,59653.0,0.1437]
[1724853974889,0.502831,59662.0,59661.0,0.50540786]
[1724853975094,0.0684,59668.0,59653.0,0.1437]
[1724853975290,0.1676,59666.0,59655.0,0.335257]
[1724853975510,0.1,59670.0,59653.0,0.1437]
[1724853975725,0.1,59670.0,59643.0,0.51440586]
[1724853975726,0.0684,59661.0,59643.0,0.51440586]
[1724853976310,0.16765,59648.0,59643.0,0.176661]
[1724853976679,0.335259,59656.0,59643.0,0.008998]
[1724853976896,0.0704,59672.0,59644.0,0.0781]
[1724853977105,0.33528,59652.0,59643.0,0.008998]
[1724853977311,0.502983,59644.0,59643.0,0.009998]
[1724853977519,1.3313562,59644.0,59643.0,0.009998]
[1724853977732,1.372027,59644.0,59643.0,0.009998]
[1724853977948,1.365027,59644.0,59643.0,0.008998]
[1724853978201,1.372027,59644.0,59643.0,0.008998]
[1724853978822,1.365027,59644.0,59643.0,0.008998]
[1724853979029,1.370027,59644.0,59643.0,0.008998]
[1724853979232,1.370027,59644.0,59643.0,0.008778]
[1724853979436,1.372027,59644.0,59643.0,0.008778]
[1724853979644,1.365027,59644.0,59643.0,0.008778]
[1724853979853,1.296627,59644.0,59643.0,0.008778]
[1724853980053,1.4398297,59644.0,59643.0,0.016778]
[1724853980180,1.8555517,59644.0,59643.0,0.016778]
[1724853980602,1.8545517,59644.0,59643.0,0.008778]
[1724853980803,1.726349,59644.0,59643.0,0.009778]
[1724853981011,1.526079,59639.0,59638.0,0.008976]
[1724853981226,1.526079,59639.0,59624.0,0.008976]
[1724853981227,0.588485,59632.0,59624.0,0.008976]
[1724853981426,1.93520335,59632.0,59624.0,0.008976]
[1724853981641,2.39359335,59632.0,59624.0,0.008976]
[1724853981986,2.43452915,59632.0,59624.0,0.008976]
[1724853982225,1.717655,59632.0,59624.0,0.008976]
[1724853983125,1.715655,59632.0,59624.0,0.008976]
[1724853983333,1.394265,59632.0,59624.0,0.008976]
[1724853983746,1.717655,59632.0,59624.0,0.008976]
[1724853983956,2.10623212,59632.0,59631.0,1e-06]
[1724853984155,1.179201,59615.0,59612.0,0.008998]
[1724853984381,1.637687,59615.0,59612.0,0.008998]
[1724853984605,1.637687,59615.0,59614.0,0.0192329]
[1724853984821,1.637687,59615.0,59614.0,0.008976]
[1724853985024,1.302201,59615.0,59614.0,0.008976]
[1724853985177,1.637687,59615.0,59614.0,0.008976]
[1724853985698,1.302201,59615.0,59614.0,0.008976]
[1724853985900,0.267743,59615.0,59614.0,0.008976]
[1724853986104,0.1,59615.0,59614.0,0.008976]
[1724853986314,0.01,59636.0,59616.0,0.335479]
[1724853986512,0.01,59636.0,59614.0,0.074076]
[1724853986513,0.005,59630.0,59614.0,0.074076]
[1724853986718,0.172743,59615.0,59614.0,0.074076]
[1724853986892,0.172743,59615.0,59614.0,0.241821]
[1724853986893,0.005,59615.0,59614.0,0.241821]
[1724853987097,0.167741,59616.0,59614.0,0.074076]
[1724853987387,0.335435,59624.0,59614.0,0.074076]
[1724853987388,0.167732,59619.0,59614.0,0.074076]
[1724853987606,0.01,59631.0,59614.0,0.074076]
[1724853987607,0.005,59632.0,59614.0,0.074076]
[1724853987832,0.335429,59626.0,59614.0,0.074076]
[1724853988031,0.167743,59615.0,59614.0,0.074076]
[1724853988342,0.167743,59615.0,59614.0,0.008976]
[1724853988343,0.843715,59615.0,59614.0,0.008976]
[1724853988568,0.843715,59615.0,59597.0,0.0828]
[1724853988569,1.247895,59600.0,59583.0,0.51440586]
[1724853988761,0.912325,59600.0,59584.0,0.335657]
[1724853988968,1.247895,59600.0,59583.0,0.51440586]
[1724853989163,1.370895,59600.0,59583.0,0.51440586]
[1724853989372,1.370895,59600.0,59583.0,0.008998]
[1724853989575,1.370895,59600.0,59583.0,0.51440586]
[1724853989576,1.716465,59600.0,59583.0,0.51440586]
[1724853989988,1.716465,59600.0,59584.0,0.50540786]
[1724853990191,1.380895,59600.0,59584.0,0.50540786]
[1724853990408,1.380895,59600.0,59583.0,0.008998]
[1724853990541,1.90974162,59600.0,59583.0,0.008998]
[1724853990952,1.92074162,59600.0,59583.0,0.008998]
[1724853991146,1.527191,59595.0,59583.0,0.008998]
[1724853991368,0.520422,59592.0,59583.0,0.008998]
[1724853991617,1.4473942,59592.0,59583.0,0.008998]
[1724853991790,1.4453942,59592.0,59583.0,0.008998]
[1724853991988,1.76985412,59592.0,59583.0,0.008998]
[1724853992415,1.371052,59592.0,59583.0,0.008998]
[1724853992615,1.381052,59592.0,59583.0,0.008998]
[1724853992842,1.43623912,59592.0,59583.0,0.008998]
[1724853993191,1.57786303,59592.0,59583.0,0.008998]
[1724853993401,1.59186303,59592.0,59583.0,0.008998]
[1724853993830,1.385052,59592.0,59583.0,0.008998]
[1724853994055,1.297652,59592.0,59583.0,0.008998]
[1724853994258,0.939037,59592.0,59590.0,0.0641]
[1724853994463,0.953037,59592.0,59590.0,0.0641]
[1724853994672,0.014,59592.0,59590.0,0.0641]
[1724853994908,0.005,59603.0,59590.0,0.0641]
[1724853995119,0.503422,59592.0,59591.0,0.00814499]
[1724853995341,0.98009791,59592.0,59591.0,0.00814499]
[1724853995554,0.98009791,59592.0,59583.0,0.008998]
[1724853995555,0.51849,59584.0,59583.0,0.008998]
[1724853995801,1.18981,59584.0,59583.0,0.008998]
[1724853996012,1.31139712,59584.0,59583.0,0.008998]
[1724853996309,1.41339712,59584.0,59583.0,0.008998]
[1724853996519,1.79820567,59584.0,59583.0,0.008998]
[1724853996726,1.80020567,59584.0,59583.0,0.008998]
[1724853996935,1.79820567,59584.0,59583.0,0.008998]
[1724853997142,1.77005712,59584.0,59583.0,0.008998]
[1724853997349,1.38121,59584.0,59583.0,0.008998]
[1724853997761,0.96715,59584.0,59583.0,0.008998]
[1724853998084,0.60349,59584.0,59583.0,0.008998]
[1724853998292,0.94415,59584.0,59583.0,0.008998]
[1724853998495,1.40136821,59584.0,59583.0,0.008998]
[1724853998700,1.41136821,59584.0,59583.0,0.008998]
[1724853998935,1.27981,59584.0,59583.0,0.008998]
[1724853999314,1.67862821,59584.0,59583.0,0.008998]
[1724853999522,1.31281,59584.0,59583.0,0.008998]
[1724853999745,1.30281,59584.0,59583.0,0.008998]
[1724853999984,1.31281,59584.0,59583.0,0.008998]
[1724854000188,1.30281,59584.0,59583.0,0.008998]
[1724854000393,0.93915,59584.0,59583.0,0.008998]
[1724854000864,0.335626,59591.0,59583.0,0.008998]
[1724854001081,0.00082,59595.0,59583.0,0.008998]
[1724854001286,0.0344605,59595.0,59585.0,0.0807]
[1724854001496,0.00082,59595.0,59585.0,0.0807]
[1724854001695,0.335565,59601.0,59586.0,0.335648]
[1724854001917,0.335447,59622.0,59583.0,0.34466]
[1724854001918,0.005,59609.0,59595.0,0.1433]
[1724854002093,0.005,59607.0,59595.0,0.1433]
[1724854002313,0.167796,59596.0,59595.0,0.1433]
[1724854002451,0.83898,59596.0,59595.0,0.1433]
[1724854002641,0.83898,59596.0,59595.0,0.0613]
[1724854002837,0.01,59608.0,59595.0,0.0613]
[1724854002838,0.335563,59602.0,59596.0,0.167794]
[1724854003065,0.503388,59596.0,59595.0,0.0613]
[1724854003470,0.167796,59596.0,59595.0,0.0613]
[1724854003673,0.83898,59596.0,59595.0,0.0613]
[1724854004097,0.335621,59591.0,59589.0,0.0618]
[1724854004298,0.005,59587.0,59583.0,0.008998]
[1724854004496,0.04693809,59596.0,59583.0,0.008998]
[1724854004497,0.83915,59584.0,59583.0,0.008998]
[1724854004758,1.37685611,59584.0,59583.0,0.008998]
[1724854005043,1.29781,59584.0,59583.0,0.008998]
[1724854005854,0.62649,59584.0,59583.0,0.008998]
[1724854005992,0.1,59584.0,59583.0,0.008998]
[1724854006174,0.335636,59589.0,59583.0,0.008998]
[1724854006550,0.002,59607.0,59583.0,0.008998]
[1724854006551,0.005,59600.0,59586.0,0.0821]
[1724854006766,0.167818,59589.0,59586.0,0.0821]
[1724854006962,0.167814,59590.0,59586.0,0.0821]
[1724854007134,0.335625,59591.0,59586.0,0.0821]
[1724854007342,0.1,59596.0,59587.0,0.0629]
[1724854007691,0.01756633,59610.0,59593.0,0.335604]
[1724854007692,0.16778,59602.0,59593.0,0.335604]
[1724854007915,0.16778,59602.0,59588.0,0.0798]
[1724854007916,0.005,59602.0,59588.0,0.0798]
[1724854008120,0.167806,59593.0,59588.0,0.247617]
[1724854008326,0.02256633,59610.0,59588.0,0.0798]
[1724854008472,0.02256633,59610.0,59587.0,0.0629]
[1724854008473,0.01509663,59609.0,59594.0,0.0798]
[1724854008685,0.00082,59595.0,59594.0,0.0798]
[1724854008904,0.839815,59595.0,59594.0,0.0798]
[1724854009498,0.00082,59595.0,59594.0,0.583206]
[1724854010055,0.00082,59595.0,59594.0,0.311002]
[1724854010261,0.00082,59595.0,59594.0,0.646606]
[1724854010465,0.00082,59595.0,59594.0,0.1432]
[1724854011026,0.00082,59595.0,59594.0,0.311002]
[1724854011227,0.00082,59595.0,59594.0,0.646606]
[1724854011471,0.00082,59595.0,59594.0,0.98221]
[1724854011649,0.167752,59612.0,59594.0,1.317814]
[1724854011850,0.01,59624.0,59605.0,0.0822]
[1724854011851,0.167759,59610.0,59605.0,0.0822]
[1724854012053,0.01756111,59624.0,59611.0,0.167752]
[1724854012249,0.335478,59617.0,59612.0,0.0609]
[1724854012428,0.503245,59613.0,59612.0,0.0469]
[1724854012772,0.167748,59613.0,59612.0,0.0469]
[1724854012982,0.35299711,59624.0,59613.0,0.0808]
[1724854013179,0.167733,59619.0,59613.0,0.0808]
[1724854013378,0.335451,59622.0,59613.0,0.0808]
[1724854013593,0.167735,59618.0,59614.0,0.167745]
[1724854013919,0.335434,59625.0,59613.0,0.0808]
[1724854014336,0.335402,59630.0,59612.0,0.0469]
[1724854014337,0.335402,59630.0,59621.0,0.167724]
[1724854014537,0.167718,59624.0,59620.0,0.167728]
[1724854014758,0.267721,59623.0,59619.0,0.0779]
[1724854014980,0.1,59623.0,59619.0,0.0779]
[1724854015202,0.335427,59626.0,59620.0,0.167727]
[1724854015203,0.167718,59624.0,59620.0,0.167727]
[1724854015387,0.335402,59630.0,59620.0,0.335455]
[1724854015605,0.167713,59626.0,59621.0,0.229225]
[1724854015943,0.005,59635.0,59621.0,0.229225]
[1724854015944,0.16772,59624.0,59621.0,0.0615]
[1724854016091,0.335418,59628.0,59621.0,0.0615]
[1724854016300,0.167718,59624.0,59621.0,0.0615]
[1724854016498,0.335418,59628.0,59621.0,0.0615]
[1724854016699,0.167718,59624.0,59621.0,0.0615]
[1724854016924,0.335431,59625.0,59621.0,0.0615]
[1724854017153,0.167721,59623.0,59621.0,0.0615]
[1724854017365,0.1,59624.0,59621.0,0.0615]
[1724854017493,0.1,59624.0,59621.0,0.229224]
[1724854018094,0.167721,59623.0,59621.0,0.0615]
[1724854018522,0.1,59624.0,59621.0,0.0615]
[1724854018681,0.16772,59624.0,59621.0,0.0615]
[1724854019095,0.267714,59626.0,59621.0,0.229225]
[1724854019292,0.167718,59624.0,59621.0,0.0615]
[1724854019738,0.1,59626.0,59621.0,0.229225]
[1724854019947,0.015,59638.0,59621.0,0.229225]
[1724854019948,0.01755555,59643.0,59622.0,0.0767]
[1724854020156,0.0082,59655.0,59637.0,0.0767]
[1724854020392,0.0082,59655.0,59648.0,0.0646]
[1724854020607,0.335273,59653.0,59648.0,0.0646]
[1724854020749,0.502941,59649.0,59648.0,0.0646]
[1724854020962,0.838235,59649.0,59648.0,0.0646]
[1724854021166,0.0082,59655.0,59633.0,0.232291]
[1724854021167,0.167681,59637.0,59633.0,0.232291]
[1724854021363,0.33538701,59634.0,59633.0,0.0646]
[1724854021687,0.16769701,59634.0,59633.0,0.0646]
[1724854021909,0.50307601,59634.0,59633.0,0.0646]
[1724854022060,8.01e-06,59634.0,59633.0,0.0646]
[1724854022434,8.01e-06,59634.0,59633.0,0.90306]
[1724854022651,8.01e-06,59634.0,59633.0,1.317944]
[1724854022854,0.0082,59656.0,59646.0,0.335311]
[1724854023066,0.0082,59656.0,59645.0,0.1388]
[1724854023067,0.0082,59656.0,59654.0,0.0773]
[1724854023277,0.0082,59656.0,59648.0,0.0825]
[1724854023278,0.335294,59649.0,59648.0,0.0825]
[1724854023452,0.838277,59646.0,59645.0,0.0615]
[1724854023680,1.173588,59646.0,59645.0,0.0615]
[1724854023878,0.838335,59642.0,59641.0,0.0825]
[1724854024636,0.167667,59642.0,59641.0,0.0825]
[1724854024961,0.838335,59642.0,59641.0,0.0825]
[1724854025443,0.167667,59642.0,59641.0,0.0825]
[1724854025650,0.503001,59642.0,59641.0,0.0825]
[1724854025867,0.838335,59642.0,59641.0,0.0825]
[1724854026610,0.503001,59642.0,59641.0,0.0825]
[1724854027016,0.1,59651.0,59641.0,0.0825]
[1724854027217,0.503001,59642.0,59641.0,0.0825]
[1724854027431,0.335314,59646.0,59641.0,0.0825]
[1724854027619,0.1,59651.0,59641.0,0.0825]
[1724854027835,0.167663,59644.0,59641.0,0.0825]
[1724854027974,0.0082,59655.0,59641.0,0.0825]
[1724854028192,0.503001,59642.0,59641.0,0.0825]
[1724854028557,0.838335,59642.0,59641.0,0.0825]
[1724854028759,0.503001,59642.0,59641.0,0.0825]
[1724854028957,0.838335,59642.0,59641.0,0.0825]
[1724854029109,0.838335,59642.0,59641.0,0.0845]
[1724854029501,0.838335,59642.0,59641.0,0.002]
[1724854029699,1.196669,59642.0,59641.0,0.002]
[1724854029907,1.296669,59642.0,59641.0,0.002]
[1724854030115,1.639003,59642.0,59641.0,0.002]
[1724854030428,0.83856,59626.0,59625.0,0.0649]
[1724854031040,0.1,59642.0,59633.0,0.16769]
[1724854031240,0.005,59652.0,59630.0,0.167698]
[1724854031241,0.005,59650.0,59630.0,0.167698]
[1724854031465,0.005,59650.0,59628.0,0.1429]
[1724854031466,0.167688,59635.0,59631.0,0.167695]
[1724854031701,0.167695,59632.0,59628.0,0.310605]
[1724854032216,0.335375,59635.0,59628.0,0.310605]
[1724854032217,0.335366,59637.0,59631.0,0.167695]
[1724854032352,0.335366,59637.0,59628.0,0.1429]
[1724854032353,0.1,59643.0,59632.0,0.0824]
[1724854032727,0.1,59648.0,59634.0,0.167688]
[1724854032938,0.33536,59638.0,59632.0,0.0824]
[1724854033162,0.167688,59635.0,59632.0,0.0824]
[1724854033384,0.003,59642.0,59641.0,0.167669]
[1724854033587,0.1,59648.0,59642.0,0.0812]
[1724854033791,0.167664,59643.0,59642.0,0.0762]
[1724854033994,0.269664,59643.0,59642.0,0.0762]
[1724854034425,0.267664,59643.0,59642.0,0.0762]
[1724854034575,0.93832,59643.0,59642.0,0.0762]
[1724854034986,0.52916,59643.0,59633.0,0.065002]
[1724854035158,0.335351,59639.0,59633.0,0.065002]
[1724854035566,0.167689,59634.0,59633.0,0.065002]
[1724854035804,0.167686,59636.0,59633.0,0.065002]
[1724854035981,0.335353,59639.0,59633.0,0.232694]
[1724854036256,0.335353,59639.0,59633.0,0.065002]
[1724854036257,0.167682,59637.0,59633.0,0.065002]
[1724854036458,0.1,59643.0,59633.0,0.060002]
[1724854036676,0.0252,59655.0,59633.0,0.060002]
[1724854036677,0.435314,59646.0,59634.0,0.078]
[1724854036876,0.167652,59648.0,59634.0,0.078]
[1724854037106,0.0082,59655.0,59636.0,0.0786]
[1724854037107,0.167655,59647.0,59636.0,0.0786]